Workbook

Sheet Single Primal Yield Example
A1: AABBBBAAAAB>
E3: Example : Topside primal muscle comparing the profit margin between traditional and alternative retail cuts
H5: Carcase/side weight | K5: 165.424
H6: Primal weight | K6: 11.284
H7: Carcase Grade | K7: R4L
H8: Primal Cost/ Kg | K8: 5.25
H9: Total Primal Cost | K9: =IF(ISERROR(K6*K8),0,K6*K8) -> 59.241
H16: Topside- EBLEX Code: Topside B001
D17: TRADITIONAL | O17: ALTERNATIVE
C19: Table 1 | N19: Table 2
C20: Product name | D20: Topside-Joint Traditional | F20: Topside B004 | N20: Product name | O20: Ranch Steaks | P20: Topside B009
C21: Primal weight | D21: 11.284 | E21: Percentage of Carcase | H21: =IF(ISERROR((D21/K5)),0,(D21/K5)) -> 0.06821259309 | N21: Primal weight | O21: 11.284 | P21: Percentage of Carcase | S21: =IF(ISERROR((O21/K5)),0,(O21/K5)) -> 0.06821259309
C22: Price Per Kg | D22: 5.25 | N22: Price Per Kg | O22: 5.25
C23: Wholesale cost: | D23: =IF(ISERROR((D21*D22)),0,(D21*D22)) -> 59.241 | N23: Wholesale cost: | O23: =IF(ISERROR((O21*O22)),0,(O21*O22)) -> 59.241
C26: Product description | D26: Eblex code | E26: Weight (Kg) | F26: Red Meat Yield % | G26: Selling price (£/Kg) | H26: Value £ | N26: Product description | O26: Eblex code | P26: Weight (Kg) | Q26: Red Meat Yield % | R26: Selling price (£/Kg) | S26: Value£
C27: Topside Joints | D27: Topside B004 | E27: 10.17 | F27: =IF(ISERROR((E27/D21)),0,(E27/D21)) -> 0.9012761432 | G27: 12.96 | H27: =IF(ISERROR((E27*G27)),0,(E27*G27)) -> 131.8032 | N27: Ranch Steaks | O27: Topside B009 | P27: 5.921 | Q27: =IF(ISERROR((P27/O21)),0,(P27/O21)) -> 0.5247252747 | R27: 14.86 | S27: =IF(ISERROR((P27*R27)),0,(P27*R27)) -> 87.98606
C28: Diced 98%vl | D28: Dice B001 | E28: 0.306 | F28: =IF(ISERROR((E28/D21)),0,(E28/D21)) -> 0.02711804325 | G28: 10 | H28: 3.06 | N28: Tender Top Steak | O28: Topside B015 | P28: 1.779 | Q28: =IF(ISERROR((P28/O21)),0,(P28/O21)) -> 0.1576568593 | R28: 14.86 | S28: 26.43594
C29: Trim 85% Visual Lean | D29: Trim B008 | E29: 0.664 | F29: =IF(ISERROR((E29/D21)),0,(E29/D21)) -> 0.05884438143 | G29: 7 | H29: 4.648 | N29: Diced 98%vl | O29: Dice B001 | P29: 2.353 | Q29: =IF(ISERROR((P29/O21)),0,(P29/O21)) -> 0.2085253456 | R29: 10 | S29: 23.53
H30: 0 | N30: Trim 85% Visual Lean | O30: Trim B008 | P30: 1.154 | Q30: =IF(ISERROR((P30/O21)),0,(P30/O21)) -> 0.102268699 | R30: 7 | S30: 8.078
H31: 0 | Q31: =IF(ISERROR((P31/O21)),0,(P31/O21)) -> 0 | S31: 0
H32: 0 | Q32: =IF(ISERROR((P32/O21)),0,(P32/O21)) -> 0 | S32: 0
H33: 0 | Q33: =IF(ISERROR((P33/O21)),0,(P33/O21)) -> 0 | S33: 0
H34: 0 | Q34: =IF(ISERROR((P34/O21)),0,(P34/O21)) -> 0 | S34: 0
H35: 0 | Q35: =IF(ISERROR((P35/O21)),0,(P35/O21)) -> 0 | S35: 0
H36: 0 | Q36: =IF(ISERROR((P36/O21)),0,(P36/O21)) -> 0 | S36: 0
H37: 0 | Q37: =IF(ISERROR((P37/O21)),0,(P37/O21)) -> 0 | S37: 0
H38: 0 | Q38: =IF(ISERROR((P38/O21)),0,(P38/O21)) -> 0 | S38: 0
D39: Total saleable meat | E39: =IF(ISERROR(SUM(E27:E38)),0,SUM(E27:E38)) -> 11.14 | F39: =IF(ISERROR((E39/D21)),0,(E39/D21)) -> 0.9872385679 | O39: Total saleable meat | P39: =IF(ISERROR(SUM(P27:P38)),0,SUM(P27:P38)) -> 11.207 | Q39: =IF(ISERROR((P39/O21)),0,(P39/O21)) -> 0.9931761787
D40: Bone & Waste (Kg) | E40: 0 | F40: =IF(ISERROR((E40/D21)),0,(E40/D21)) -> 0 | O40: Bone & Waste (Kg) | P40: 0.068 | Q40: =IF(ISERROR((P40/O21)),0,(P40/O21)) -> 0.006026231833
D41: Drip/Cutting loss(Kg) | E41: =IF(ISERROR((D21-E39-E40)),0,(D21-E39-E40)) -> 0.144 | F41: =IF(ISERROR((E41/D21)),0,(E41/D21)) -> 0.01276143212 | O41: Drip/Cutting loss(Kg) | P41: =IF(ISERROR((O21-P39-P40)),0,(O21-P39-P40)) -> 0.009 | Q41: =IF(ISERROR((P41/O21)),0,(P41/O21)) -> 0.0007975895073
E43: Total Sales Value | H43: =IF(ISERROR(SUM(H27:H38)),0,SUM(H27:H38)) -> 139.5112 | P43: Total Sales Value | S43: =IF(ISERROR(SUM(S27:S38)),0,SUM(S27:S38)) -> 146.03
E44: Gross Margin | H44: =IF(ISERROR(SUM(H27:H38,-D23)),0,SUM(H27:H38,-D23)) -> 80.2702 | P44: Gross Margin | S44: =IF(ISERROR(SUM(S27:S38,-O23)),0,SUM(S27:S38,-O23)) -> 86.789
E45: Gross Profit | H45: =IF(ISERROR((H44/H43)),0,(H44/H43)) -> 0.5753674257 | P45: Gross Profit | S45: =IF(ISERROR((S44/S43)),0,(S44/S43)) -> 0.5943230843
H47: Primal summary | M47: Value | N47: Gross Margin | O47: Profit %
H48: Table 1 | M48: =IF(ISERROR((H43)),0,(H43)) -> 139.5112 | N48: =IF(ISERROR((H44)),0,(H44)) -> 80.2702 | O48: =IF(ISERROR((H45)),0,(H45)) -> 0.5753674257
H49: Table 2 | M49: =IF(ISERROR((S43)),0,(S43)) -> 146.03 | N49: =IF(ISERROR((S44)),0,(S44)) -> 86.789 | O49: =IF(ISERROR((S45)),0,(S45)) -> 0.5943230843
H50: Increased Profit | M50: =IF(ISERROR((M49-M48)),0,(M49-M48)) -> 6.5188 | N50: =IF(ISERROR((N49-N48)),0,(N49-N48)) -> 6.5188 | O50: =IF(ISERROR(SUM(O49-O48)),0,SUM(O49-O48)) -> 0.0189556586
C55: Traditional | N55: Alternative
C56: Total Red Meat (Kg) | E56: =IF(ISERROR((E39)),0,(E39)) -> 11.14 | N56: Total Red Meat (Kg) | P56: =IF(ISERROR((P39)),0,(P39)) -> 11.207
C57: Total Fat (Kg) | E57: =IF(ISERROR((E40)),0,(E40)) -> 0 | N57: Total Fat (Kg) | P57: =IF(ISERROR((P40)),0,(P40)) -> 0.068
C58: Total Drip Cutting loss (kg) | E58: =IF(ISERROR((E41)),0,(E41)) -> 0.144 | N58: Total Drip Cutting loss (kg) | P58: =IF(ISERROR((P41)),0,(P41)) -> 0.009
C59: Total Red Meat Yield % | E59: =IF(ISERROR((F39)),0,(F39)) -> 0.9872385679 | N59: Total Red Meat Yield % | P59: =IF(ISERROR((Q39)),0,(Q39)) -> 0.9931761787
C60: Total Fat & Bone Waste (%) | E60: =IF(ISERROR((F40)),0,(F40)) -> 0 | N60: Total Fat & Bone Waste (%) | P60: =IF(ISERROR((Q40)),0,(Q40)) -> 0.006026231833
C61: Drip/Cutting Loss (%) | E61: =IF(ISERROR((F41)),0,(F41)) -> 0.01276143212 | N61: Drip/Cutting Loss (%) | P61: =IF(ISERROR((Q41)),0,(Q41)) -> 0.0007975895073
C62: Reconciled Yield | E62: =IF(ISERROR((E59+E60+E61)),0,(E59+E60+E61)) -> 1 | N62: Reconciled Yield | P62: =IF(ISERROR((P59+P60+P61)),0,(P59+P60+P61)) -> 1
C63: Total Primal Cost | E63: =IF(ISERROR(D23),0,D23) -> 59.241 | N63: Total Primal Cost | P63: =IF(ISERROR(O23),0,O23) -> 59.241
C64: Totals Sales Value | E64: =IF(ISERROR((H43)),0,(H43)) -> 139.5112 | N64: Totals Sales Value | P64: =IF(ISERROR((S43)),0,(S43)) -> 146.03
C65: Totals Gross Margin | E65: =IF(ISERROR(E64-E63),0,E64-E63) -> 80.2702 | N65: Totals Gross Margin | P65: =IF(ISERROR(P64-P63),0,P64-P63) -> 86.789
C66: Totals Gross Profit | E66: =IF(ISERROR((E65/E64)),0,(E65/E64)) -> 0.5753674257 | N66: Totals Gross Profit | P66: =IF(ISERROR((P65/P64)),0,(P65/P64)) -> 0.5943230843
G71: Beef yield/costing summary
H72: Total Sales Value | I72: Gross Margin | K72: Profit %
G73: Traditional | H73: =IF(ISERROR(E64),0,E64) -> 139.5112 | I73: =IF(ISERROR(E65),0,E65) -> 80.2702 | K73: =IF(ISERROR(E66),0,E66) -> 0.5753674257
G74: Alternative | H74: =IF(ISERROR(P64),0,P64) -> 146.03 | I74: =IF(ISERROR(P65),0,P65) -> 86.789 | K74: =IF(ISERROR(P66),0,P66) -> 0.5943230843
G75: Increased Profit | H75: =IF(ISERROR(H74-H73),0,H74-H73) -> 6.5188 | I75: =IF(ISERROR(I74-I73),0,I74-I73) -> 6.5188 | K75: =IF(ISERROR(SUM(K74-K73)),0,SUM(K74-K73)) -> 0.0189556586

Sheet Single Primal Yield Template
E3: Blank template : Beef yield comparison between primal cuts cut into retail cuts
H5: Carcase/side weight (Kg)
H6: Primal weight
H7: Carcase Grade
H8: Primal Cost/ Kg
H9: Total Primal Cost | K9: =IF(ISERROR(K6*K8),0,K6*K8) -> 0
H12: Title
D14: TRADITIONAL | O14: ALTERNATIVE
C16: Table 1 | N16: Table 2
C17: Product name | N17: Product name
C18: Primal weight | D18: =IF(ISERROR((K6)),0,(K6)) -> 0 | E18: Percentage of Carcase | H18: =IF(ISERROR((D18/K5)),0,(D18/K5)) -> 0 | N18: Primal weight | O18: =IF(ISERROR(K6),0,K6) -> 0 | P18: Percentage of Carcase | S18: =IF(ISERROR((O18/K5)),0,(O18/K5)) -> 0
C19: Price Per Kg | D19: =IF(ISERROR((K8)),0,(K8)) -> 0 | N19: Price Per Kg | O19: =IF(ISERROR((K8)),0,(K8)) -> 0
C20: Wholesale cost: | D20: =IF(ISERROR((D18*D19)),0,(D18*D19)) -> 0 | N20: Wholesale cost: | O20: =IF(ISERROR((O18*O19)),0,(O18*O19)) -> 0
C23: Product description | D23: EBLEX code | E23: Weight (Kg) | F23: Red Meat Yield % | G23: Selling price (£/Kg) | H23: Value £ | J23: FOR IDEAS ON ALTERNATIVE CUTTING SPECIFICATIONS CLICK ON THE LINK BELOW | N23: Product description | O23: EBLEX code | P23: Weight (Kg) | Q23: Red Meat Yield % | R23: Selling price (£/Kg) | S23: Value£
F24: =IF(ISERROR((E24/D18)),0,(E24/D18)) -> 0 | H24: =IF(ISERROR((E24*G24)),0,(E24*G24)) -> 0 | Q24: =IF(ISERROR((P24/O18)),0,(P24/O18)) -> 0 | S24: =IF(ISERROR((P24*R24)),0,(P24*R24)) -> 0
F25: =IF(ISERROR((E25/D18)),0,(E25/D18)) -> 0 | H25: 0 | Q25: =IF(ISERROR((P25/O18)),0,(P25/O18)) -> 0 | S25: 0
F26: =IF(ISERROR((E26/D18)),0,(E26/D18)) -> 0 | H26: 0 | J26: www.ahdb.org.uk | Q26: =IF(ISERROR((P26/O18)),0,(P26/O18)) -> 0 | S26: 0
F27: =IF(ISERROR((E27/D18)),0,(E27/D18)) -> 0 | H27: 0 | Q27: =IF(ISERROR((P27/O18)),0,(P27/O18)) -> 0 | S27: 0
F28: =IF(ISERROR((E28/D18)),0,(E28/D18)) -> 0 | H28: 0 | Q28: =IF(ISERROR((P28/O18)),0,(P28/O18)) -> 0 | S28: 0
F29: =IF(ISERROR((E29/D18)),0,(E29/D18)) -> 0 | H29: 0 | Q29: =IF(ISERROR((P29/O18)),0,(P29/O18)) -> 0 | S29: 0
F30: =IF(ISERROR((E30/D18)),0,(E30/D18)) -> 0 | H30: 0 | Q30: =IF(ISERROR((P30/O18)),0,(P30/O18)) -> 0 | S30: 0
F31: =IF(ISERROR((E31/D18)),0,(E31/D18)) -> 0 | H31: 0 | Q31: =IF(ISERROR((P31/O18)),0,(P31/O18)) -> 0 | S31: 0
F32: =IF(ISERROR((E32/D18)),0,(E32/D18)) -> 0 | H32: 0 | Q32: =IF(ISERROR((P32/O18)),0,(P32/O18)) -> 0 | S32: 0
F33: =IF(ISERROR((E33/D18)),0,(E33/D18)) -> 0 | H33: 0 | Q33: =IF(ISERROR((P33/O18)),0,(P33/O18)) -> 0 | S33: 0
F34: =IF(ISERROR((E34/D18)),0,(E34/D18)) -> 0 | H34: 0 | Q34: =IF(ISERROR((P34/O18)),0,(P34/O18)) -> 0 | S34: 0
F35: =IF(ISERROR((E35/D18)),0,(E35/D18)) -> 0 | H35: 0 | Q35: =IF(ISERROR((P35/O18)),0,(P35/O18)) -> 0 | S35: 0
D36: Total saleable meat | E36: =IF(ISERROR(SUM(E24:E35)),0,SUM(E24:E35)) -> 0 | F36: =IF(ISERROR((E36/D18)),0,(E36/D18)) -> 0 | O36: Total saleable meat | P36: =IF(ISERROR(SUM(P24:P35)),0,SUM(P24:P35)) -> 0 | Q36: =IF(ISERROR((P36/O18)),0,(P36/O18)) -> 0
D37: Bone & Waste (Kg) | E37: 0 | F37: =IF(ISERROR((E37/D18)),0,(E37/D18)) -> 0 | O37: Bone & Waste (Kg) | P37: 0 | Q37: =IF(ISERROR((P37/O18)),0,(P37/O18)) -> 0
D38: Drip/Cutting loss(Kg) | E38: =IF(ISERROR((D18-E36-E37)),0,(D18-E36-E37)) -> 0 | F38: =IF(ISERROR((E38/D18)),0,(E38/D18)) -> 0 | O38: Drip/Cutting loss(Kg) | P38: =IF(ISERROR((O18-P36-P37)),0,(O18-P36-P37)) -> 0 | Q38: =IF(ISERROR((P38/O18)),0,(P38/O18)) -> 0
E40: Total Sales Value | H40: =IF(ISERROR(SUM(H24:H35)),0,SUM(H24:H35)) -> 0 | P40: Total Sales Value | S40: =IF(ISERROR(SUM(S24:S35)),0,SUM(S24:S35)) -> 0
E41: Gross Margin | H41: =IF(ISERROR(SUM(H24:H35,-D20)),0,SUM(H24:H35,-D20)) -> 0 | P41: Gross Margin | S41: =IF(ISERROR(SUM(S24:S35,-O20)),0,SUM(S24:S35,-O20)) -> 0
E42: Gross Profit | H42: =IF(ISERROR((H41/H40)),0,(H41/H40)) -> 0 | P42: Gross Profit | S42: =IF(ISERROR((S41/S40)),0,(S41/S40)) -> 0
H44: Primal summary | M44: Value | N44: Gross Margin | O44: Profit %
H45: Table 1 | M45: =IF(ISERROR((H40)),0,(H40)) -> 0 | N45: =IF(ISERROR((H41)),0,(H41)) -> 0 | O45: =IF(ISERROR((H42)),0,(H42)) -> 0
H46: Table 2 | M46: =IF(ISERROR((S40)),0,(S40)) -> 0 | N46: =IF(ISERROR((S41)),0,(S41)) -> 0 | O46: =IF(ISERROR((S42)),0,(S42)) -> 0
H47: Increased Profit | M47: =IF(ISERROR((M46-M45)),0,(M46-M45)) -> 0 | N47: =IF(ISERROR((N46-N45)),0,(N46-N45)) -> 0 | O47: =IF(ISERROR(SUM(O46-O45)),0,SUM(O46-O45)) -> 0
C52: Traditional | N52: Alternative
C53: Total Red Meat (Kg) | E53: =IF(ISERROR((E36)),0,(E36)) -> 0 | N53: Total Red Meat (Kg) | P53: =IF(ISERROR((P36)),0,(P36)) -> 0
C54: Total Fat (Kg) | E54: =IF(ISERROR((E37)),0,(E37)) -> 0 | N54: Total Fat (Kg) | P54: =IF(ISERROR((P37)),0,(P37)) -> 0
C55: Total Drip Cutting loss (kg) | E55: =IF(ISERROR((E38)),0,(E38)) -> 0 | N55: Total Drip Cutting loss (kg) | P55: =IF(ISERROR((P38)),0,(P38)) -> 0
C56: Total Red Meat Yield % | E56: =IF(ISERROR((F36)),0,(F36)) -> 0 | N56: Total Red Meat Yield % | P56: =IF(ISERROR((Q36)),0,(Q36)) -> 0
C57: Total Fat & Bone Waste (%) | E57: =IF(ISERROR((F37)),0,(F37)) -> 0 | N57: Total Fat & Bone Waste (%) | P57: =IF(ISERROR((Q37)),0,(Q37)) -> 0
C58: Drip/Cutting Loss (%) | E58: =IF(ISERROR((F38)),0,(F38)) -> 0 | N58: Drip/Cutting Loss (%) | P58: =IF(ISERROR((Q38)),0,(Q38)) -> 0
C59: Reconciled Yield | E59: =IF(ISERROR((E56+E57+E58)),0,(E56+E57+E58)) -> 0 | N59: Reconciled Yield | P59: =IF(ISERROR((P56+P57+P58)),0,(P56+P57+P58)) -> 0
C60: Total Primal Cost | E60: =IF(ISERROR(D20),0,D20) -> 0 | N60: Total Primal Cost | P60: =IF(ISERROR(O20),0,O20) -> 0
C61: Totals Sales Value | E61: =IF(ISERROR((H40)),0,(H40)) -> 0 | N61: Totals Sales Value | P61: =IF(ISERROR((S40)),0,(S40)) -> 0
C62: Totals Gross Margin | E62: =IF(ISERROR(E61-E60),0,E61-E60) -> 0 | N62: Totals Gross Margin | P62: =IF(ISERROR(P61-P60),0,P61-P60) -> 0
C63: Totals Gross Profit | E63: =IF(ISERROR((E62/E61)),0,(E62/E61)) -> 0 | N63: Totals Gross Profit | P63: =IF(ISERROR((P62/P61)),0,(P62/P61)) -> 0
G68: Beef yield/costing summary
H69: Total Sales Value | I69: Gross Margin | K69: Profit %
G70: Traditional | H70: =IF(ISERROR(E61),0,E61) -> 0 | I70: =IF(ISERROR(E62),0,E62) -> 0 | K70: =IF(ISERROR(E63),0,E63) -> 0
G71: Alternative | H71: =IF(ISERROR(P61),0,P61) -> 0 | I71: =IF(ISERROR(P62),0,P62) -> 0 | K71: =IF(ISERROR(P63),0,P63) -> 0
G72: Increased Profit | H72: =IF(ISERROR(H71-H70),0,H71-H70) -> 0 | I72: =IF(ISERROR(I71-I70),0,I71-I70) -> 0 | K72: =IF(ISERROR(SUM(K71-K70)),0,SUM(K71-K70)) -> 0

Sheet Beef primal cut yield (hidden)
F1: Beef Yield Comparsion
B4: Carcase weight (Kg) | C4: 165.424 | K4: Carcase weight (Kg) | L4: 160.328
B5: Carcase Grade | C5: R4L | K5: Carcase Grade | L5: R4L
B6: Carcase Cost/ Kg | C6: 3.58 | K6: Carcase Cost/ Kg | L6: 3.58
B7: Total Carcase Cost | C7: =C4*C6 -> 592.21792 | K7: Total Carcase Cost | L7: =L4*L6 -> 573.97424
F9: Topside- EBLEX Code: Topside B001
L11: `
B12: Table 1 | K12: Table 2
B13: Product name | C13: Topside-Joint Traditional | E13: Topside B004 | K13: Product name | L13: Topside Mini Joints with added fat | N13: Topside B006
B14: Primal weight | C14: 11.284 | D14: Percentage of Carcase | F14: =(C14/C4) -> 0.06821259309 | K14: Primal weight | L14: 10.54 | M14: Percentage of Carcase | O14: =(L14/L4) -> 0.06574023252
B15: Price Per Kg | C15: 5.25 | K15: Price Per Kg | L15: 5.25
B16: Wholesale cost: | C16: =(C15*C14) -> 59.241 | K16: Wholesale cost: | L16: =(L15*L14) -> 55.335
B19: Product description | C19: Eblex code | D19: Weight (Kg) | E19: Selling price (£/Kg) | F19: Value £ | K19: Product description | L19: Eblex code | M19: Weight (Kg) | N19: Selling price (£/Kg) | O19: Value£
B20: Topside Joints | C20: Topside B004 | F20: =(D20*E20) -> 0 | K20: Mini Joints | L20: Topside B006 | O20: =(M20*N20) -> 0
B21: Diced 98%vl | C21: Dice B001 | F21: =(D21*E21) -> 0 | K21: Tender Top Steak | L21: Topside B015 | O21: 0
B22: QSM Minced Beef | C22: Mince B001 | F22: 0 | K22: Diced 98%vl | L22: Dice B001 | O22: 0
F23: 0 | K23: QSM Minced Beef | L23: Mince B001 | O23: 0
F24: 0 | O24: 0
F25: 0 | O25: 0
F26: 0 | O26: 0
F27: 0 | O27: 0
F28: 0 | O28: 0
F29: 0 | O29: 0
F30: 0 | O30: 0
F31: 0 | O31: 0
C32: Total saleable meat | L32: Total saleable meat | M32: =SUM(M20:M31) -> 0
C33: Bone & Waste (Kg) | L33: Bone & Waste (Kg)
C34: Drip/Cutting loss(Kg) | L34: Drip/Cutting loss(Kg)
D36: Total Sales Value | F36: =SUM(F20:F31) -> 0 | M36: Total Sales Value | O36: =SUM(O20:O31) -> 0
D37: Gross Margin | F37: =SUM(F20:F31,-C16) -> -59.241 | M37: Gross Margin | O37: =SUM(O20:O31,-L16) -> -55.335
D38: Gross Profit | F38: =(F37/F36) ->  | M38: Gross Profit | O38: =(O37/O36) -> 
J40: Value | K40: Gross Margin | L40: Profit %
F41: Table 1 | J41: =(F36) -> 0 | K41: =(F37) -> -59.241 | L41: =(F38) -> 
F42: Table 2 | J42: =(O36) -> 0 | K42: =(O37) -> -55.335 | L42: =(O38) -> 
F43: Increased Profit | J43: =(J42-J41) -> 0 | K43: =(K42-K41) -> 3.906 | L43: =SUM(L42-L41) -> 
F47: Silverside- EBLEX Code: Silverside B001
L51: `
B52: Table 1 | K52: Table 2
B53: Product name | C53: Silverside Joint with added fat | E53: Silverside B002 | K53: Product name | L53: Premium Mini Joints with added fat | N53: Silveside B
B54: Primal weight | C54: 9.384 | D54: Percentage of Carcase | F54: =(C54/C4) -> 0.05672695619 | K54: Primal weight | L54: 9.164 | M54: Percentage of Carcase | O54: =(L54/L4) -> 0.05715782646
B55: Price Per Kg | C55: 4.85 | K55: Price Per Kg | L55: 4.85
B56: Wholesale cost: | C56: =(C55*C54) -> 45.5124 | K56: Wholesale cost: | L56: =(L55*L54) -> 44.4454
B58: Product description | C58: Eblex code | D58: Weight (Kg) | E58: Selling price (£/Kg) | F58: Value £ | K58: Product description | L58: Eblex code | M58: Weight (Kg) | N58: Selling price (£/Kg) | O58: Value£
B59: Silverside Joints | C59: Silveside B002 | F59: =(D59*E59) -> 0 | K59: Premium Mini Joints | O59: =(M59*N59) -> 0
B60: Diced 98%vl | C60: Dice B001 | F60: =(D60*E60) -> 0 | K60: Escallops(Salmon Cut) | L60: Silverside B004 | O60: 0
B61: QSM Minced Beef | C61: Mince B001 | F61: 0 | K61: Diced 98%vl | L61: Dice B001 | O61: 0
F62: 0 | K62: QSM Minced Beef | L62: Mince B001 | O62: 0
F63: 0 | O63: 0
F64: 0 | O64: 0
F65: 0 | O65: 0
F66: 0 | O66: 0
F67: 0 | O67: 0
F68: 0 | O68: 0
F69: 0 | O69: 0
F70: 0 | O70: 0
C71: Total saleable meat | D71: =SUM(D59:D70) -> 0 | L71: Total saleable meat | M71: =SUM(M59:M70) -> 0
C72: Bone & Waste (Kg) | L72: Bone & Waste (Kg)
C73: Drip/Cutting loss(Kg) | L73: Drip/Cutting loss(Kg)
D75: Total Sales Value | F75: =SUM(F59:F70) -> 0 | M75: Total Sales Value | O75: =SUM(O59:O70) -> 0
D76: Gross Margin | F76: =SUM(F59:F70,-C56) -> -45.5124 | M76: Gross Margin | O76: =SUM(O59:O70,-L56) -> -44.4454
D77: Gross Profit | F77: =(F76/F75) ->  | M77: Gross Profit | O77: =(O76/O75) -> 
J79: Value | K79: Gross Margin | L79: Profit %
F80: Table 1 | J80: =(F75) -> 0 | K80: =(F76) -> -45.5124 | L80: =(F77) -> 
F81: Table 2 | J81: =(O75) -> 0 | K81: =(O76) -> -44.4454 | L81: =(O77) -> 
F82: Increased Profit | J82: =(J81-J80) -> 0 | K82: =(K81-K80) -> 1.067 | L82: =SUM(L81-L80) -> 
F86: Heel Muscle- EBLEX Code: Leg B001
L90: `
B91: Table 1 | K91: Table 2
B92: Product name | C92: Dice 98% Visual Lean | E92: Leg B001 | K92: Product name | L92: Pavé(Heel Muscle) | N92: Leg B002
B93: Primal weight | C93: 2.486 | D93: Percentage of Carcase | F93: =(C93/C4) -> 0.01502804913 | K93: Primal weight | L93: 2.46 | M93: Percentage of Carcase | O93: =(L93/L4) -> 0.01534354573
B94: Price Per Kg | C94: 3.25 | K94: Price Per Kg | L94: 3.25
B95: Wholesale cost: | C95: =(C94*C93) -> 8.0795 | K95: Wholesale cost: | L95: =(L94*L93) -> 7.995
B97: Product description | C97: Eblex code | D97: Weight (Kg) | E97: Selling price (£/Kg) | F97: Value £ | K97: Product description | L97: Eblex code | M97: Weight (Kg) | N97: Selling price (£/Kg) | O97: Value£
B98: Dice 98% Visual Lean | C98: DiceB001 | F98: =(D98*E98) -> 0 | K98: Pavé(Heel Muscle) | L98: Leg B002 | O98: =(M98*N98) -> 0
B99: QSM Minced Beef | C99: Mince B001 | F99: =(D99*E99) -> 0 | K99: Dice 98% Visual Lean | L99: DiceB001 | O99: 0
F100: 0 | K100: QSM Minced Beef | L100: Mince B001 | O100: 0
F101: 0 | O101: 0
F102: 0 | O102: 0
F103: 0 | O103: 0
F104: 0 | O104: 0
F105: 0 | O105: 0
F106: 0 | O106: 0
F107: 0 | O107: 0
F108: 0 | O108: 0
F109: 0 | O109: 0
C110: Total saleable meat | D110: =SUM(D98:D109) -> 0 | L110: Total saleable meat | M110: =SUM(M98:M109) -> 0
C111: Bone & Waste (Kg) | D111: 0 | L111: Bone & Waste (Kg) | M111: 0
C112: Drip/Cutting loss(Kg) | D112: 0 | L112: Drip/Cutting loss(Kg) | M112: 0
D114: Total Sales Value | F114: =SUM(F98:F109) -> 0 | M114: Total Sales Value | O114: =SUM(O98:O109) -> 0
D115: Gross Margin | F115: =SUM(F98:F109,-C95) -> -8.0795 | M115: Gross Margin | O115: =SUM(O98:O109,-L95) -> -7.995
D116: Gross Profit | F116: =(F115/F114) ->  | M116: Gross Profit | O116: =(O115/O114) -> 
J118: Value | K118: Gross Margin | L118: Profit %
F119: Table 1 | J119: =(F114) -> 0 | K119: =(F115) -> -8.0795 | L119: =(F116) -> 
F120: Table 2 | J120: =(O114) -> 0 | K120: =(O115) -> -7.995 | L120: =(O116) -> 
F121: Increased Profit | J121: =(J120-J119) -> 0 | K121: =(K120-K119) -> 0.0845 | L121: =SUM(L120-L119) -> 
F125: Thick Flank- EBLEX Code: Thick Flank B001
L129: `
B130: Table 1 | K130: Table 2
B131: Product name | C131: Thick Flank Joints | E131: Thick Flank B002 | K131: Product name | L131: Thick Flank Seam Cut | N131: Thick flank B005
B132: Primal weight | C132: 6.586 | D132: Percentage of Carcase | F132: =(C132/C4) -> 0.03981284457 | K132: Primal weight | L132: 6.404 | M132: Percentage of Carcase | O132: =(L132/L4) -> 0.03994311661
B133: Price Per Kg | C133: 4.2 | K133: Price Per Kg | L133: 4.2
B134: Wholesale cost: | C134: =(C133*C132) -> 27.6612 | K134: Wholesale cost: | L134: =(L133*L132) -> 26.8968
B136: Product description | C136: Eblex code | D136: Weight (Kg) | E136: Selling price (£/Kg) | F136: Value £ | K136: Product description | L136: Eblex code | M136: Weight (Kg) | N136: Selling price (£/Kg) | O136: Value£
B137: Thick Flank Joints | C137: Thick flank B002 | F137: =(D137*E137) -> 0 | K137: Centre Cut Steaks | L137: Thick Flank B005 | O137: =(M137*N137) -> 0
B138: QSM Minced Beef | C138: Mince B001 | F138: =(D138*E138) -> 0 | K138: Escallops(Thick Flank) | L138: Thick Flank B005 | O138: 0
F139: 0 | K139: Pavé(Thick Flank) | L139: Thick Flank B007 | O139: 0
F140: 0 | K140: Dice 98% Visual Lean | L140: DiceB001 | O140: 0
F141: 0 | K141: QSM Minced Beef | L141: Mince B001 | O141: 0
F142: 0 | O142: 0
F143: 0 | O143: 0
F144: 0 | O144: 0
F145: 0 | O145: 0
F146: 0 | O146: 0
F147: 0 | O147: 0
F148: 0 | O148: 0
C149: Total saleable meat | D149: =SUM(D137:D148) -> 0 | L149: Total saleable meat | M149: =SUM(M137:M148) -> 0
C150: Bone & Waste (Kg) | D150: 0 | L150: Bone & Waste (Kg) | M150: 0
C151: Drip/Cutting loss(Kg) | D151: 0 | L151: Drip/Cutting loss(Kg) | M151: 0
D153: Total Sales Value | F153: =SUM(F137:F148) -> 0 | M153: Total Sales Value | O153: =SUM(O137:O148) -> 0
D154: Gross Margin | F154: =SUM(F137:F148,-C134) -> -27.6612 | M154: Gross Margin | O154: =SUM(O137:O148,-L134) -> -26.8968
D155: Gross Profit | F155: =(F154/F153) ->  | M155: Gross Profit | O155: =(O154/O153) -> 
J157: Value | K157: Gross Margin | L157: Profit %
F158: Table 1 | J158: =(F153) -> 0 | K158: =(F154) -> -27.6612 | L158: =(F155) -> 
F159: Table 2 | J159: =(O153) -> 0 | K159: =(O154) -> -26.8968 | L159: =(O155) -> 
F160: Increased Profit | J160: =(J159-J158) -> 0 | K160: =(K159-K158) -> 0.7644 | L160: =SUM(L159-L158) -> 
F164: D Rump (without tail)- EBLEX Code: Rump B004
L168: `
B169: Table 1 | K169: Table 2
B170: Product name | C170: Traditional Rump Steaks | E170: Rump B006 | K170: Product name | L170: Premium Prime Rump Steak | N170: Rump B003
B171: Primal weight | C171: 5.204 | D171: Percentage of Carcase | F171: =(C171/C4) -> 0.03145855499 | K171: Primal weight | L171: 5.368 | M171: Percentage of Carcase | O171: =(L171/L4) -> 0.03348136321
B172: Price Per Kg | C172: 6.5 | K172: Price Per Kg | L172: 6.5
B173: Wholesale cost: | C173: =(C172*C171) -> 33.826 | K173: Wholesale cost: | L173: =(L172*L171) -> 34.892
B175: Product description | C175: Eblex code | D175: Weight (Kg) | E175: Selling price (£/Kg) | F175: Value £ | K175: Product description | L175: Eblex code | M175: Weight (Kg) | N175: Selling price (£/Kg) | O175: Value£
B176: Traditional Rump Steaks | C176: Rump B006 | F176: =(D176*E176) -> 0 | K176: Prime Rump Steak | L176: Rump B003 | O176: =(M176*N176) -> 0
B177: Dice 98% Visual Lean | C177: DiceB001 | F177: =(D177*E177) -> 0 | K177: Bistro Rump Steak | L177: Rump B003 | O177: 0
B178: QSM Minced Beef | C178: Mince B001 | F178: 0 | K178: Picanha Steak | L178: Rump B013 | O178: 0
F179: 0 | K179: Dice 98% Visual Lean | L179: DiceB001 | O179: 0
F180: 0 | K180: QSM Minced Beef | L180: Mince B001 | O180: 0
F181: 0 | O181: 0
F182: 0 | O182: 0
F183: 0 | O183: 0
F184: 0 | O184: 0
F185: 0 | O185: 0
F186: 0 | O186: 0
F187: 0 | O187: 0
C188: Total saleable meat | D188: =SUM(D176:D187) -> 0 | L188: Total saleable meat | M188: =SUM(M176:M187) -> 0
C189: Bone & Waste (Kg) | D189: 0 | L189: Bone & Waste (Kg) | M189: 0
C190: Drip/Cutting loss(Kg) | D190: 0 | L190: Drip/Cutting loss(Kg) | M190: 0
D192: Total Sales Value | F192: =SUM(F176:F187) -> 0 | M192: Total Sales Value | O192: =SUM(O176:O187) -> 0
D193: Gross Margin | F193: =SUM(F176:F187,-C173) -> -33.826 | M193: Gross Margin | O193: =SUM(O176:O187,-L173) -> -34.892
D194: Gross Profit | F194: =(F193/F192) ->  | M194: Gross Profit | O194: =(O193/O192) -> 
J196: Value | K196: Gross Margin | L196: Profit %
F197: Table 1 | J197: =(F192) -> 0 | K197: =(F193) -> -33.826 | L197: =(F194) -> 
F198: Table 2 | J198: =(O192) -> 0 | K198: =(O193) -> -34.892 | L198: =(O194) -> 
F199: Increased Profit | J199: =(J198-J197) -> 0 | K199: =(K198-K197) -> -1.066 | L199: =SUM(L198-L197) -> 
F203: Rump Tail- EBLEX Code: Rump B012
L207: `
B208: Table 1 | K208: Table 2
B209: Product name | C209: Dice 98% Visual Lean | E209: Dice B001 | K209: Product name | L209: Rump Tail/Tri Tip Mini Joint | N209: Rump B020
B210: Primal weight | C210: 1.67 | D210: Percentage of Carcase | F210: =(C210/C4) -> 0.01009527034 | K210: Primal weight | L210: 1.564 | M210: Percentage of Carcase | O210: =(L210/L4) -> 0.009755002245
B211: Price Per Kg | C211: 5 | K211: Price Per Kg | L211: 5
B212: Wholesale cost: | C212: =(C211*C210) -> 8.35 | K212: Wholesale cost: | L212: =(L211*L210) -> 7.82
B214: Product description | C214: Eblex code | D214: Weight (Kg) | E214: Selling price (£/Kg) | F214: Value £ | K214: Product description | L214: Eblex code | M214: Weight (Kg) | N214: Selling price (£/Kg) | O214: Value£
B215: Dice 98% Visual Lean | C215: Dice B001 | F215: =(D215*E215) -> 0 | K215: Tri Tip Mini Joint | L215: Rump B020 | O215: =(M215*N215) -> 0
B216: QSM Minced Beef | C216: Mince B001 | F216: =(D216*E216) -> 0 | K216: Dice 98% Visual Lean | L216: DiceB001 | O216: 0
F217: 0 | K217: QSM Minced Beef | L217: Mince B001 | O217: 0
F218: 0 | O218: 0
F219: 0 | O219: 0
F220: 0 | O220: 0
F221: 0 | O221: 0
F222: 0 | O222: 0
F223: 0 | O223: 0
F224: 0 | O224: 0
F225: 0 | O225: 0
F226: 0 | O226: 0
C227: Total saleable meat | D227: =SUM(D215:D226) -> 0 | L227: Total saleable meat | M227: =SUM(M215:M226) -> 0
C228: Bone & Waste (Kg) | D228: 0 | L228: Bone & Waste (Kg) | M228: 0
C229: Drip/Cutting loss(Kg) | D229: 0 | L229: Drip/Cutting loss(Kg) | M229: 0
D231: Total Sales Value | F231: =SUM(F215:F226) -> 0 | M231: Total Sales Value | O231: =SUM(O215:O226) -> 0
D232: Gross Margin | F232: =SUM(F215:F226,-C212) -> -8.35 | M232: Gross Margin | O232: =SUM(O215:O226,-L212) -> -7.82
D233: Gross Profit | F233: =(F232/F231) ->  | M233: Gross Profit | O233: =(O232/O231) -> 
J235: Value | K235: Gross Margin | L235: Profit %
F236: Table 1 | J236: =(F231) -> 0 | K236: =(F232) -> -8.35 | L236: =(F233) -> 
F237: Table 2 | J237: =(O231) -> 0 | K237: =(O232) -> -7.82 | L237: =(O233) -> 
F238: Increased Profit | J238: =(J237-J236) -> 0 | K238: =(K237-K236) -> 0.53 | L238: =SUM(L237-L236) -> 
F242: Striploin- EBLEX Code: Sirloin B002
L246: `
B247: Table 1 | K247: Table 2
B248: Product name | C248: Sirloin Steak standard trim | E248: Sirloin B006 | K248: Product name | L248: Bone -in Porterhouse Steak | N248: Sirloin B017
B249: Primal weight | C249: 7.388 | D249: Percentage of Carcase | F249: =(C249/C4) -> 0.04466099236 | K249: Primal weight | L249: 11.33 | M249: Percentage of Carcase | O249: =(L249/L4) -> 0.07066763136
B250: Price Per Kg | C250: 11 | K250: Price Per Kg | L250: 8.3
B251: Wholesale cost: | C251: =(C250*C249) -> 81.268 | K251: Wholesale cost: | L251: =(L250*L249) -> 94.039
B253: Product description | C253: Eblex code | D253: Weight (Kg) | E253: Selling price (£/Kg) | F253: Value £ | K253: Product description | L253: Eblex code | M253: Weight (Kg) | N253: Selling price (£/Kg) | O253: Value£
B254: Sirloin Steak standard | C254: Sirloin B006 | F254: =(D254*E254) -> 0 | K254: Porterhouse Steak | L254: Sirloin B017 | O254: =(M254*N254) -> 0
B255: QSM Minced Beef | C255: Mince B001 | F255: =(D255*E255) -> 0 | K255: Bone in Sirloin Steak | L255: Sirloin B018 | O255: 0
F256: 0 | O256: 0
F257: 0 | O257: 0
F258: 0 | O258: 0
F259: 0 | O259: 0
F260: 0 | O260: 0
... 603 more rows

Sheet Primal specification yield (2 (hidden)
G1: Beef Yield Comparsion
B4: Carcase weight (Kg) | C4: 165.424 | L4: Carcase weight (Kg) | M4: 160.328
B5: Carcase Grade | C5: R4L | L5: Carcase Grade
B6: Carcase Cost/ Kg | L6: Carcase Cost/ Kg
B7: Total Carcase Cost | C7: =C4*C6 -> 0 | L7: Total Carcase Cost | M7: =M4*M6 -> 0
G9: Topside- EBLEX Code: Topside B001
M11: `
B12: Table 1 | L12: Table 2
B13: Product name | C13: Topside-Joint Traditional | F13: Topside B004 | L13: Product name | M13: Ranch Steaks | O13: Topside B009
B14: Primal weight | C14: 11.284 | D14: Percentage of Carcase | G14: =(C14/C4) -> 0.06821259309 | L14: Primal weight | M14: 10.54 | N14: Percentage of Carcase | P14: =(M14/M4) -> 0.06574023252
B15: Price Per Kg | L15: Price Per Kg
B16: Wholesale cost: | C16: =(C15*C14) -> 0 | L16: Wholesale cost: | M16: =(M15*M14) -> 0
B19: Product description | C19: Eblex code | D19: Weight (Kg) | E19: Red Meat Yield % | F19: Selling price (£/Kg) | G19: Value £ | L19: Product description | M19: Eblex code | N19: Weight (Kg) | O19: Selling price (£/Kg) | P19: Value£
B20: Topside Joints | C20: Topside B004 | D20: 10.17 | E20: =(D20/C14) -> 0.9012761432 | G20: =(D20*F20) -> 0 | L20: Ranch Steaks | M20: Topside B009 | N20: 5.53 | P20: =(N20*O20) -> 0
B21: Diced 98%vl | C21: Dice B001 | D21: 0.306 | E21: =(D21/C14) -> 0.02711804325 | G21: =(D21*F21) -> 0 | L21: Tender Top Steak | M21: Topside B015 | N21: 1.662 | P21: 0
B22: Trim 85% Visual Lean | C22: Trim B008 | D22: 0.664 | E22: =(D22/C14) -> 0.05884438143 | G22: 0 | L22: Diced 98%vl | M22: Dice B001 | N22: 2.198 | P22: 0
G23: 0 | L23: Trim 85% Visual Lean | M23: Trim B008 | N23: 1.078 | P23: 0
G24: 0 | P24: 0
G25: 0 | P25: 0
G26: 0 | P26: 0
G27: 0 | P27: 0
G28: 0 | P28: 0
G29: 0 | P29: 0
G30: 0 | P30: 0
G31: 0 | P31: 0
C32: Total saleable meat | D32: =SUM(D20:D31) -> 11.14 | E32: =(D32/C14) -> 0.9872385679 | M32: Total saleable meat | N32: =SUM(N20:N31) -> 10.468
C33: Bone & Waste (Kg) | D33: 0.132 | E33: =(D33/C14) -> 0.01169797944 | M33: Bone & Waste (Kg) | N33: 0.064
C34: Drip/Cutting loss(Kg) | D34: =(C14-D32-D33) -> 0.012 | E34: =(D34/C14) -> 0.001063452676 | M34: Drip/Cutting loss(Kg) | N34: =(M14-N32-N33) -> 0.008
D36: Total Sales Value | G36: =SUM(G20:G31) -> 0 | N36: Total Sales Value | P36: =SUM(P20:P31) -> 0
D37: Gross Margin | G37: =SUM(G20:G31,-C16) -> 0 | N37: Gross Margin | P37: =SUM(P20:P31,-M16) -> 0
D38: Gross Profit | G38: =(G37/G36) ->  | N38: Gross Profit | P38: =(P37/P36) -> 
K40: Value | L40: Gross Margin | M40: Profit %
G41: Table 1 | K41: =(G36) -> 0 | L41: =(G37) -> 0 | M41: =(G38) -> 
G42: Table 2 | K42: =(P36) -> 0 | L42: =(P37) -> 0 | M42: =(P38) -> 
G43: Increased Profit | K43: =(K42-K41) -> 0 | L43: =(L42-L41) -> 0 | M43: =SUM(M42-M41) -> 
G47: Silverside- EBLEX Code: Silverside B001
M51: `
B52: Table 1 | L52: Table 2
B53: Product name | C53: Silverside Joint with added fat | F53: Silverside B002 | L53: Product name | M53: Silverside Mini Joints with added fat | O53: Silveside B003
B54: Primal weight | C54: 9.384 | D54: Percentage of Carcase | G54: =(C54/C4) -> 0.05672695619 | L54: Primal weight | M54: 9.164 | N54: Percentage of Carcase | P54: =(M54/M4) -> 0.05715782646
B55: Price Per Kg | L55: Price Per Kg
B56: Wholesale cost: | C56: =(C55*C54) -> 0 | L56: Wholesale cost: | M56: =(M55*M54) -> 0
B58: Product description | C58: Eblex code | D58: Weight (Kg) | F58: Selling price (£/Kg) | G58: Value £ | L58: Product description | M58: Eblex code | N58: Weight (Kg) | O58: Selling price (£/Kg) | P58: Value£
B59: Silverside Joints | C59: Silveside B002 | D59: 8.876 | G59: =(D59*F59) -> 0 | L59: Silverside Mini Joints(with added fat) | M59: Silverside B003 | N59: 6.024 | P59: =(N59*O59) -> 0
B60: Diced 98%vl | C60: Dice B001 | G60: =(D60*F60) -> 0 | L60: Escallops(Salmon Cut) | M60: Silverside B004 | N60: 2.126 | P60: 0
B61: Trim 85% Visual Lean | C61: Trim B008 | D61: 0.426 | G61: 0 | L61: Diced 98%vl | M61: Dice B001 | N61: 0.248 | P61: 0
G62: 0 | L62: Trim 85% Visual Lean | M62: Trim B008 | N62: 0.952 | P62: 0
G63: 0 | P63: 0
G64: 0 | P64: 0
G65: 0 | P65: 0
G66: 0 | P66: 0
G67: 0 | P67: 0
G68: 0 | P68: 0
G69: 0 | P69: 0
G70: 0 | P70: 0
C71: Total saleable meat | D71: =SUM(D59:D70) -> 9.302 | M71: Total saleable meat | N71: =SUM(N59:N70) -> 9.35
C72: Bone & Waste (Kg) | D72: 0.04 | M72: Bone & Waste (Kg) | N72: 0.272
C73: Drip/Cutting loss(Kg) | D73: =(C54-D71-D72) -> 0.042 | M73: Drip/Cutting loss(Kg) | N73: =(M54-N71-N72) -> -0.458
D75: Total Sales Value | G75: =SUM(G59:G70) -> 0 | N75: Total Sales Value | P75: =SUM(P59:P70) -> 0
D76: Gross Margin | G76: =SUM(G59:G70,-C56) -> 0 | N76: Gross Margin | P76: =SUM(P59:P70,-M56) -> 0
D77: Gross Profit | G77: =(G76/G75) ->  | N77: Gross Profit | P77: =(P76/P75) -> 
K79: Value | L79: Gross Margin | M79: Profit %
G80: Table 1 | K80: =(G75) -> 0 | L80: =(G76) -> 0 | M80: =(G77) -> 
G81: Table 2 | K81: =(P75) -> 0 | L81: =(P76) -> 0 | M81: =(P77) -> 
G82: Increased Profit | K82: =(K81-K80) -> 0 | L82: =(L81-L80) -> 0 | M82: =SUM(M81-M80) -> 
G86: Heel Muscle- EBLEX Code: Leg B001
M90: `
B91: Table 1 | L91: Table 2
B92: Product name | C92: Dice 98% Visual Lean | F92: Leg B001 | L92: Product name | M92: Pavé(Heel Muscle) | O92: Leg B002
B93: Primal weight | C93: 2.486 | D93: Percentage of Carcase | G93: =(C93/C4) -> 0.01502804913 | L93: Primal weight | M93: 2.46 | N93: Percentage of Carcase | P93: =(M93/M4) -> 0.01534354573
B94: Price Per Kg | L94: Price Per Kg
B95: Wholesale cost: | C95: =(C94*C93) -> 0 | L95: Wholesale cost: | M95: =(M94*M93) -> 0
B97: Product description | C97: Eblex code | D97: Weight (Kg) | F97: Selling price (£/Kg) | G97: Value £ | L97: Product description | M97: Eblex code | N97: Weight (Kg) | O97: Selling price (£/Kg) | P97: Value£
B98: Dice 98% Visual Lean | C98: DiceB001 | D98: 1.558 | G98: =(D98*F98) -> 0 | L98: Pavé(Heel Muscle) | M98: Leg B002 | N98: 0.786 | P98: =(N98*O98) -> 0
B99: Trim 85% Visual Lean | C99: Trim B008 | D99: 0.756 | G99: =(D99*F99) -> 0 | L99: Dice 98% Visual Lean | M99: DiceB001 | N99: 0.362 | P99: 0
G100: 0 | L100: Trim 85% Visual Lean | M100: Trim B008 | N100: 1.16 | P100: 0
G101: 0 | P101: 0
G102: 0 | P102: 0
G103: 0 | P103: 0
G104: 0 | P104: 0
G105: 0 | P105: 0
G106: 0 | P106: 0
G107: 0 | P107: 0
G108: 0 | P108: 0
G109: 0 | P109: 0
C110: Total saleable meat | D110: =SUM(D98:D109) -> 2.314 | M110: Total saleable meat | N110: =SUM(N98:N109) -> 2.308
C111: Bone & Waste (Kg) | D111: 0.166 | M111: Bone & Waste (Kg) | N111: 0.116
C112: Drip/Cutting loss(Kg) | D112: =(C93-D110-D111) -> 0.006 | M112: Drip/Cutting loss(Kg) | N112: =(M93-N110-N111) -> 0.036
D114: Total Sales Value | G114: =SUM(G98:G109) -> 0 | N114: Total Sales Value | P114: =SUM(P98:P109) -> 0
D115: Gross Margin | G115: =SUM(G98:G109,-C95) -> 0 | N115: Gross Margin | P115: =SUM(P98:P109,-M95) -> 0
D116: Gross Profit | G116: =(G115/G114) ->  | N116: Gross Profit | P116: =(P115/P114) -> 
K118: Value | L118: Gross Margin | M118: Profit %
G119: Table 1 | K119: =(G114) -> 0 | L119: =(G115) -> 0 | M119: =(G116) -> 
G120: Table 2 | K120: =(P114) -> 0 | L120: =(P115) -> 0 | M120: =(P116) -> 
G121: Increased Profit | K121: =(K120-K119) -> 0 | L121: =(L120-L119) -> 0 | M121: =SUM(M120-M119) -> 
G125: Thick Flank- EBLEX Code: Thick Flank B001
M129: `
B130: Table 1 | L130: Table 2
B131: Product name | C131: Thick Flank Joints | F131: Thick Flank B002 | L131: Product name | M131: Thick Flank Seam Cut | O131: Thick flank B005
B132: Primal weight | C132: 6.586 | D132: Percentage of Carcase | G132: =(C132/C4) -> 0.03981284457 | L132: Primal weight | M132: 6.404 | N132: Percentage of Carcase | P132: =(M132/M4) -> 0.03994311661
B133: Price Per Kg | L133: Price Per Kg
B134: Wholesale cost: | C134: =(C133*C132) -> 0 | L134: Wholesale cost: | M134: =(M133*M132) -> 0
B136: Product description | C136: Eblex code | D136: Weight (Kg) | F136: Selling price (£/Kg) | G136: Value £ | L136: Product description | M136: Eblex code | N136: Weight (Kg) | O136: Selling price (£/Kg) | P136: Value£
B137: Thick Flank Joints | C137: Thick flank B002 | D137: 6.166 | G137: =(D137*F137) -> 0 | L137: Centre Cut Steaks | M137: Thick Flank B005 | N137: 2.132 | P137: =(N137*O137) -> 0
B138: Trim 85% Visual Lean | C138: Trim B008 | D138: 0.266 | G138: =(D138*F138) -> 0 | L138: Escallops(Thick Flank) | M138: Thick Flank B005 | N138: 1.984 | P138: 0
G139: 0 | L139: Pavé(Thick Flank) | M139: Thick Flank B007 | N139: 0.486 | P139: 0
G140: 0 | L140: Dice 98% Visual Lean | M140: DiceB001 | N140: 0.465 | P140: 0
G141: 0 | L141: Trim 85% Visual Lean | M141: Trim B008 | N141: 1.138 | P141: 0
G142: 0 | P142: 0
G143: 0 | P143: 0
G144: 0 | P144: 0
G145: 0 | P145: 0
G146: 0 | P146: 0
G147: 0 | P147: 0
G148: 0 | P148: 0
C149: Total saleable meat | D149: =SUM(D137:D148) -> 6.432 | M149: Total saleable meat | N149: =SUM(N137:N148) -> 6.205
C150: Bone & Waste (Kg) | D150: 0.148 | M150: Bone & Waste (Kg) | N150: 0.142
C151: Drip/Cutting loss(Kg) | D151: =(C132-D149-D150) -> 0.006 | M151: Drip/Cutting loss(Kg) | N151: =(M132-N149-N150) -> 0.057
D153: Total Sales Value | G153: =SUM(G137:G148) -> 0 | N153: Total Sales Value | P153: =SUM(P137:P148) -> 0
D154: Gross Margin | G154: =SUM(G137:G148,-C134) -> 0 | N154: Gross Margin | P154: =SUM(P137:P148,-M134) -> 0
D155: Gross Profit | G155: =(G154/G153) ->  | N155: Gross Profit | P155: =(P154/P153) -> 
K157: Value | L157: Gross Margin | M157: Profit %
G158: Table 1 | K158: =(G153) -> 0 | L158: =(G154) -> 0 | M158: =(G155) -> 
G159: Table 2 | K159: =(P153) -> 0 | L159: =(P154) -> 0 | M159: =(P155) -> 
G160: Increased Profit | K160: =(K159-K158) -> 0 | L160: =(L159-L158) -> 0 | M160: =SUM(M159-M158) -> 
G164: D Rump (without tail)- EBLEX Code: Rump B004
M168: `
B169: Table 1 | L169: Table 2
B170: Product name | C170: Traditional Rump Steaks | F170: Rump B006 | L170: Product name | M170: Premium Prime Rump Steak | O170: Rump B003
B171: Primal weight | C171: 5.204 | D171: Percentage of Carcase | G171: =(C171/C4) -> 0.03145855499 | L171: Primal weight | M171: 5.368 | N171: Percentage of Carcase | P171: =(M171/M4) -> 0.03348136321
B172: Price Per Kg | L172: Price Per Kg
B173: Wholesale cost: | C173: =(C172*C171) -> 0 | L173: Wholesale cost: | M173: =(M172*M171) -> 0
B175: Product description | C175: Eblex code | D175: Weight (Kg) | F175: Selling price (£/Kg) | G175: Value £ | L175: Product description | M175: Eblex code | N175: Weight (Kg) | O175: Selling price (£/Kg) | P175: Value£
B176: Traditional Rump Steaks | C176: Rump B006 | D176: 4.984 | G176: =(D176*F176) -> 0 | L176: Prime Rump Steak | M176: Rump B003 | N176: 2.402 | P176: =(N176*O176) -> 0
B177: Dice 98% Visual Lean | C177: DiceB001 | G177: =(D177*F177) -> 0 | L177: Bistro Rump Steak | M177: Rump B003 | N177: 1.174 | P177: 0
B178: Trim 85% Visual Lean | C178: Trim B008 | D178: 0.152 | G178: 0 | L178: Picanha Steak | M178: Rump B013 | N178: 0.92 | P178: 0
G179: 0 | L179: Rump Burger Trim | N179: 0.546 | P179: 0
G180: 0 | P180: 0
G181: 0 | P181: 0
G182: 0 | P182: 0
G183: 0 | P183: 0
G184: 0 | P184: 0
G185: 0 | P185: 0
G186: 0 | P186: 0
G187: 0 | P187: 0
C188: Total saleable meat | D188: =SUM(D176:D187) -> 5.136 | M188: Total saleable meat | N188: =SUM(N176:N187) -> 5.042
C189: Bone & Waste (Kg) | D189: 0.062 | M189: Bone & Waste (Kg) | N189: 0.324
C190: Drip/Cutting loss(Kg) | D190: =(C171-D188-D189) -> 0.006 | M190: Drip/Cutting loss(Kg) | N190: =(M171-N188-N189) -> 0.002
D192: Total Sales Value | G192: =SUM(G176:G187) -> 0 | N192: Total Sales Value | P192: =SUM(P176:P187) -> 0
D193: Gross Margin | G193: =SUM(G176:G187,-C173) -> 0 | N193: Gross Margin | P193: =SUM(P176:P187,-M173) -> 0
D194: Gross Profit | G194: =(G193/G192) ->  | N194: Gross Profit | P194: =(P193/P192) -> 
K196: Value | L196: Gross Margin | M196: Profit %
G197: Table 1 | K197: =(G192) -> 0 | L197: =(G193) -> 0 | M197: =(G194) -> 
G198: Table 2 | K198: =(P192) -> 0 | L198: =(P193) -> 0 | M198: =(P194) -> 
G199: Increased Profit | K199: =(K198-K197) -> 0 | L199: =(L198-L197) -> 0 | M199: =SUM(M198-M197) -> 
G203: Rump Tail- EBLEX Code: Rump B012
M207: `
B208: Table 1 | L208: Table 2
B209: Product name | C209: Dice 98% Visual Lean | F209: Dice B001 | L209: Product name | M209: Rump Tail/Tri Tip Mini Joint | O209: Rump B020
B210: Primal weight | C210: 1.67 | D210: Percentage of Carcase | G210: =(C210/C4) -> 0.01009527034 | L210: Primal weight | M210: 1.564 | N210: Percentage of Carcase | P210: =(M210/M4) -> 0.009755002245
B211: Price Per Kg | L211: Price Per Kg
B212: Wholesale cost: | C212: =(C211*C210) -> 0 | L212: Wholesale cost: | M212: =(M211*M210) -> 0
B214: Product description | C214: Eblex code | D214: Weight (Kg) | F214: Selling price (£/Kg) | G214: Value £ | L214: Product description | M214: Eblex code | N214: Weight (Kg) | O214: Selling price (£/Kg) | P214: Value£
B215: Dice 98% Visual Lean | C215: Dice B001 | D215: 1.362 | G215: =(D215*F215) -> 0 | L215: Tri Tip Mini Joint | M215: Rump B020 | N215: 1.04 | P215: =(N215*O215) -> 0
B216: Trim 85% Visual Lean | C216: Trim B008 | D216: 0.184 | G216: =(D216*F216) -> 0 | L216: Dice 98% Visual Lean | M216: DiceB001 | N216: 0.274 | P216: 0
G217: 0 | L217: Trim 85% Visual Lean | M217: Trim B008 | N217: 0.174 | P217: 0
G218: 0 | P218: 0
G219: 0 | P219: 0
G220: 0 | P220: 0
G221: 0 | P221: 0
G222: 0 | P222: 0
G223: 0 | P223: 0
G224: 0 | P224: 0
G225: 0 | P225: 0
G226: 0 | P226: 0
C227: Total saleable meat | D227: =SUM(D215:D226) -> 1.546 | M227: Total saleable meat | N227: =SUM(N215:N226) -> 1.488
C228: Bone & Waste (Kg) | D228: 0.124 | M228: Bone & Waste (Kg) | N228: 0.054
C229: Drip/Cutting loss(Kg) | D229: =(C210-D227-D228) -> -1.110223025e-16 | M229: Drip/Cutting loss(Kg) | N229: =(M210-N227-N228) -> 0.022
D231: Total Sales Value | G231: =SUM(G215:G226) -> 0 | N231: Total Sales Value | P231: =SUM(P215:P226) -> 0
D232: Gross Margin | G232: =SUM(G215:G226,-C212) -> 0 | N232: Gross Margin | P232: =SUM(P215:P226,-M212) -> 0
D233: Gross Profit | G233: =(G232/G231) ->  | N233: Gross Profit | P233: =(P232/P231) -> 
K235: Value | L235: Gross Margin | M235: Profit %
G236: Table 1 | K236: =(G231) -> 0 | L236: =(G232) -> 0 | M236: =(G233) -> 
G237: Table 2 | K237: =(P231) -> 0 | L237: =(P232) -> 0 | M237: =(P233) -> 
G238: Increased Profit | K238: =(K237-K236) -> 0 | L238: =(L237-L236) -> 0 | M238: =SUM(M237-M236) -> 
G242: Striploin- EBLEX Code: Sirloin B002
M246: `
B247: Table 1 | L247: Table 2
B248: Product name | C248: Sirloin Steak standard trim | F248: Sirloin B006 | L248: Product name | M248: Bone -in Porterhouse Steak | O248: Sirloin B017
B249: Primal weight | C249: 7.388 | D249: Percentage of Carcase | G249: =(C249/C4) -> 0.04466099236 | L249: Primal weight | M249: 11.33 | N249: Percentage of Carcase | P249: =(M249/M4) -> 0.07066763136
B250: Price Per Kg | L250: Price Per Kg
B251: Wholesale cost: | C251: =(C250*C249) -> 0 | L251: Wholesale cost: | M251: =(M250*M249) -> 0
B253: Product description | C253: Eblex code | D253: Weight (Kg) | F253: Selling price (£/Kg) | G253: Value £ | L253: Product description | M253: Eblex code | N253: Weight (Kg) | O253: Selling price (£/Kg) | P253: Value£
B254: Sirloin Steak standard | C254: Sirloin B006 | D254: 6.83 | G254: =(D254*F254) -> 0 | L254: Porterhouse Steak | M254: Sirloin B017 | N254: 3.968 | P254: =(N254*O254) -> 0
B255: Trim 85% Visual Lean | C255: Trim B008 | D255: 0.39 | G255: =(D255*F255) -> 0 | L255: Bone in Sirloin Steak | M255: Sirloin B018 | N255: 4.786 | P255: 0
G256: 0 | L256: Stir Fry of Beef | M256: Stir Fry B004 | N256: 0.56 | P256: 0
G257: 0 | L257: Trim 85% Visual Lean | M257: Trim B008 | N257: 0.21 | P257: 0
G258: 0 | P258: 0
G259: 0 | P259: 0
G260: 0 | P260: 0
... 603 more rows

Sheet Beef side cut yield trad-alt2 (hidden)
G1: Beef Yield Comparsion
B4: Carcase weight (Kg) | C4: 165.424 | L4: Carcase weight (Kg) | M4: 160.328
B5: Carcase Grade | C5: R4L | L5: Carcase Grade | M5: R4L
B6: Carcase Cost/ Kg | C6: 3.58 | L6: Carcase Cost/ Kg | M6: 3.58
B7: Total Carcase Cost | C7: =C4*C6 -> 592.21792 | L7: Total Carcase Cost | M7: =M4*M6 -> 573.97424
G9: Topside- EBLEX Code: Topside B001
M11: `
B12: Table 1 | L12: Table 2
B13: Product name | C13: Topside-Joint Traditional | E13: Topside B004 | L13: Product name | M13: Ranch Steaks | O13: Topside B009
B14: Primal weight | C14: 11.284 | D14: Percentage of Carcase | G14: =(C14/C4) -> 0.06821259309 | L14: Primal weight | M14: 10.54 | N14: Percentage of Carcase | Q14: =(M14/M4) -> 0.06574023252
B15: Price Per Kg | C15: 5.25 | L15: Price Per Kg | M15: 5.25
B16: Wholesale cost: | C16: =(C15*C14) -> 59.241 | L16: Wholesale cost: | M16: =(M15*M14) -> 55.335
B19: Product description | C19: Eblex code | D19: Weight (Kg) | E19: Red Meat Yield % | F19: Selling price (£/Kg) | G19: Value £ | L19: Product description | M19: Eblex code | N19: Weight (Kg) | O19: Red Meat Yield % | P19: Selling price (£/Kg) | Q19: Value£
B20: Topside Joints | C20: Topside B004 | D20: 10.17 | E20: =(D20/C14) -> 0.9012761432 | F20: 12.96 | G20: =(D20*F20) -> 131.8032 | L20: Ranch Steaks | M20: Topside B009 | N20: 5.53 | O20: =(N20/M14) -> 0.5246679317 | P20: 14.86 | Q20: =(N20*P20) -> 82.1758
B21: Diced 98%vl | C21: Dice B001 | D21: 0.306 | E21: =(D21/C14) -> 0.02711804325 | F21: 10 | G21: =(D21*F21) -> 3.06 | L21: Tender Top Steak | M21: Topside B015 | N21: 1.662 | O21: =(N21/M14) -> 0.1576850095 | P21: 14.86 | Q21: 24.69732
B22: Trim 85% Visual Lean | C22: Trim B008 | D22: 0.664 | E22: =(D22/C14) -> 0.05884438143 | F22: 7 | G22: 4.648 | L22: Diced 98%vl | M22: Dice B001 | N22: 2.198 | O22: =(N22/M14) -> 0.2085388994 | P22: 10 | Q22: 21.98
G23: 0 | L23: Trim 85% Visual Lean | M23: Trim B008 | N23: 1.078 | O23: =(N23/M14) -> 0.1022770398 | P23: 7 | Q23: 7.546
G24: 0 | O24: =(N24/M14) -> 0 | Q24: 0
G25: 0 | O25: =(N25/M14) -> 0 | Q25: 0
G26: 0 | O26: =(N26/M14) -> 0 | Q26: 0
G27: 0 | O27: =(N27/M14) -> 0 | Q27: 0
G28: 0 | O28: =(N28/M14) -> 0 | Q28: 0
G29: 0 | O29: =(N29/M14) -> 0 | Q29: 0
G30: 0 | O30: =(N30/M14) -> 0 | Q30: 0
G31: 0 | O31: =(N31/M14) -> 0 | Q31: 0
C32: Total saleable meat | D32: =SUM(D20:D31) -> 11.14 | E32: =(D32/C14) -> 0.9872385679 | M32: Total saleable meat | N32: =SUM(N20:N31) -> 10.468 | O32: =(N32/M14) -> 0.9931688805
C33: Bone & Waste (Kg) | D33: 0.132 | E33: =(D33/C14) -> 0.01169797944 | M33: Bone & Waste (Kg) | N33: 0.064 | O33: =(N33/M14) -> 0.006072106262
C34: Drip/Cutting loss(Kg) | D34: =(C14-D32-D33) -> 0.012 | E34: =(D34/C14) -> 0.001063452676 | M34: Drip/Cutting loss(Kg) | N34: =(M14-N32-N33) -> 0.008 | O34: =(N34/M14) -> 0.0007590132827
D36: Total Sales Value | G36: =SUM(G20:G31) -> 139.5112 | N36: Total Sales Value | Q36: =SUM(Q20:Q31) -> 136.39912
D37: Gross Margin | G37: =SUM(G20:G31,-C16) -> 80.2702 | N37: Gross Margin | Q37: =SUM(Q20:Q31,-M16) -> 81.06412
D38: Gross Profit | G38: =(G37/G36) -> 0.5753674257 | N38: Gross Profit | Q38: =(Q37/Q36) -> 0.5943155645
G40: Primal summary | K40: Value | L40: Gross Margin | M40: Profit %
G41: Table 1 | K41: =(G36) -> 139.5112 | L41: =(G37) -> 80.2702 | M41: =(G38) -> 0.5753674257
G42: Table 2 | K42: =(Q36) -> 136.39912 | L42: =(Q37) -> 81.06412 | M42: =(Q38) -> 0.5943155645
G43: Increased Profit | K43: =(K42-K41) -> -3.11208 | L43: =(L42-L41) -> 0.79392 | M43: =SUM(M42-M41) -> 0.0189481388
G47: Silverside- EBLEX Code: Silverside B001
M51: `
B52: Table 1 | L52: Table 2
B53: Product name | C53: Silverside Joint with added fat | F53: Silverside B002 | L53: Product name | M53: Silverside Mini Joints with added fat | P53: Silveside B003
B54: Primal weight | C54: 9.384 | D54: Percentage of Carcase | G54: =(C54/C4) -> 0.05672695619 | L54: Primal weight | M54: 9.164 | N54: Percentage of Carcase | Q54: =(M54/M4) -> 0.05715782646
B55: Price Per Kg | C55: 4.85 | L55: Price Per Kg | M55: 4.85
B56: Wholesale cost: | C56: =(C55*C54) -> 45.5124 | L56: Wholesale cost: | M56: =(M55*M54) -> 44.4454
B58: Product description | C58: Eblex code | D58: Weight (Kg) | E58: Red Meat Yield % | F58: Selling price (£/Kg) | G58: Value £ | L58: Product description | M58: Eblex code | N58: Weight (Kg) | O58: Red Meat Yield % | P58: Selling price (£/Kg) | Q58: Value£
B59: Silverside Joints | C59: Silveside B002 | D59: 8.876 | E59: =(D59/C54) -> 0.9458653026 | F59: 11.5 | G59: =(D59*F59) -> 102.074 | L59: Silverside Mini Joints(with added fat) | M59: Silverside B003 | N59: 5.564 | O59: =(N59/M54) -> 0.6071584461 | P59: 11.5 | Q59: =(N59*P59) -> 63.986
B60: Diced 98%vl | C60: Dice B001 | E60: =(D60/C54) -> 0 | G60: =(D60*F60) -> 0 | L60: Escallops(Salmon Cut) | M60: Silverside B004 | N60: 2.126 | O60: =(N60/M54) -> 0.2319947621 | P60: 14.86 | Q60: 31.59236
B61: Trim 85% Visual Lean | C61: Trim B008 | D61: 0.426 | E61: =(D61/C54) -> 0.04539641944 | F61: 7 | G61: 2.982 | L61: Diced 98%vl | M61: Dice B001 | N61: 0.248 | O61: =(N61/M54) -> 0.02706241816 | P61: 10 | Q61: 2.48
E62: =(D62/C54) -> 0 | G62: 0 | L62: Trim 85% Visual Lean | M62: Trim B008 | N62: 0.952 | O62: =(N62/M54) -> 0.1038847665 | P62: 7 | Q62: 6.664
E63: =(D63/C54) -> 0 | G63: 0 | O63: =(N63/M54) -> 0 | Q63: 0
E64: =(D64/C54) -> 0 | G64: 0 | O64: =(N64/M54) -> 0 | Q64: 0
E65: =(D65/C54) -> 0 | G65: 0 | O65: =(N65/M54) -> 0 | Q65: 0
E66: =(D66/C54) -> 0 | G66: 0 | O66: =(N66/M54) -> 0 | Q66: 0
E67: =(D67/C54) -> 0 | G67: 0 | O67: =(N67/M54) -> 0 | Q67: 0
E68: =(D68/C54) -> 0 | G68: 0 | O68: =(N68/M54) -> 0 | Q68: 0
E69: =(D69/C54) -> 0 | G69: 0 | O69: =(N69/M54) -> 0 | Q69: 0
E70: =(D70/C54) -> 0 | G70: 0 | O70: =(N70/M54) -> 0 | Q70: 0
C71: Total saleable meat | D71: =SUM(D59:D70) -> 9.302 | E71: =(D71/C54) -> 0.9912617221 | M71: Total saleable meat | N71: =SUM(N59:N70) -> 8.89 | O71: =(N71/M54) -> 0.9701003928
C72: Bone & Waste (Kg) | D72: 0.04 | E72: =(D72/C54) -> 0.004262574595 | M72: Bone & Waste (Kg) | N72: 0.272 | O72: =(N72/M54) -> 0.02968136185
C73: Drip/Cutting loss(Kg) | D73: =(C54-D71-D72) -> 0.042 | E73: =(D73/C54) -> 0.004475703325 | M73: Drip/Cutting loss(Kg) | N73: =(M54-N71-N72) -> 0.002 | O73: =(N73/M54) -> 0.0002182453077
D75: Total Sales Value | G75: =SUM(G59:G70) -> 105.056 | N75: Total Sales Value | Q75: =SUM(Q59:Q70) -> 104.72236
D76: Gross Margin | G76: =SUM(G59:G70,-C56) -> 59.5436 | N76: Gross Margin | Q76: =SUM(Q59:Q70,-M56) -> 60.27696
D77: Gross Profit | G77: =(G76/G75) -> 0.5667796223 | N77: Gross Profit | Q77: =(Q76/Q75) -> 0.5755882507
K79: Value | L79: Gross Margin | M79: Profit %
G80: Table 1 | K80: =(G75) -> 105.056 | L80: =(G76) -> 59.5436 | M80: =(G77) -> 0.5667796223
G81: Table 2 | K81: =(Q75) -> 104.72236 | L81: =(Q76) -> 60.27696 | M81: =(Q77) -> 0.5755882507
G82: Increased Profit | K82: =(K81-K80) -> -0.33364 | L82: =(L81-L80) -> 0.73336 | M82: =SUM(M81-M80) -> 0.008808628388
G86: Heel Muscle- EBLEX Code: Leg B001
M90: `
B91: Table 1 | L91: Table 2
B92: Product name | C92: Dice 98% Visual Lean | F92: Leg B001 | L92: Product name | M92: Pavé(Heel Muscle) | P92: Leg B002
B93: Primal weight | C93: 2.486 | D93: Percentage of Carcase | G93: =(C93/C4) -> 0.01502804913 | L93: Primal weight | M93: 2.46 | N93: Percentage of Carcase | Q93: =(M93/M4) -> 0.01534354573
B94: Price Per Kg | C94: 3.25 | L94: Price Per Kg | M94: 3.25
B95: Wholesale cost: | C95: =(C94*C93) -> 8.0795 | L95: Wholesale cost: | M95: =(M94*M93) -> 7.995
B97: Product description | C97: Eblex code | D97: Weight (Kg) | E97: Red Meat Yield % | F97: Selling price (£/Kg) | G97: Value £ | L97: Product description | M97: Eblex code | N97: Weight (Kg) | O97: Red Meat Yield % | P97: Selling price (£/Kg) | Q97: Value£
B98: Dice 98% Visual Lean | C98: DiceB001 | D98: 1.558 | E98: =(D98/C93) -> 0.6267095736 | F98: 10 | G98: =(D98*F98) -> 15.58 | L98: Pavé(Heel Muscle) | M98: Leg B002 | N98: 0.786 | O98: =(N98/M93) -> 0.3195121951 | P98: 14.86 | Q98: =(N98*P98) -> 11.67996
B99: Trim 85% Visual Lean | C99: Trim B008 | D99: 0.756 | E99: =(D99/C93) -> 0.3041029767 | F99: 7 | G99: =(D99*F99) -> 5.292 | L99: Dice 98% Visual Lean | M99: DiceB001 | N99: 0.362 | O99: =(N99/M93) -> 0.1471544715 | P99: 10 | Q99: 3.62
E100: =(D100/C93) -> 0 | G100: 0 | L100: Trim 85% Visual Lean | M100: Trim B008 | N100: 1.16 | O100: =(N100/M93) -> 0.4715447154 | P100: 7 | Q100: 8.12
E101: =(D101/C93) -> 0 | G101: 0 | O101: =(N101/M93) -> 0 | Q101: 0
E102: =(D102/C93) -> 0 | G102: 0 | O102: =(N102/M93) -> 0 | Q102: 0
E103: =(D103/C93) -> 0 | G103: 0 | O103: =(N103/M93) -> 0 | Q103: 0
E104: =(D104/C93) -> 0 | G104: 0 | O104: =(N104/M93) -> 0 | Q104: 0
E105: =(D105/C93) -> 0 | G105: 0 | O105: =(N105/M93) -> 0 | Q105: 0
E106: =(D106/C93) -> 0 | G106: 0 | O106: =(N106/M93) -> 0 | Q106: 0
E107: =(D107/C93) -> 0 | G107: 0 | O107: =(N107/M93) -> 0 | Q107: 0
E108: =(D108/C93) -> 0 | G108: 0 | O108: =(N108/M93) -> 0 | Q108: 0
E109: =(D109/C93) -> 0 | G109: 0 | O109: =(N109/M93) -> 0 | Q109: 0
C110: Total saleable meat | D110: =SUM(D98:D109) -> 2.314 | E110: =(D110/C93) -> 0.9308125503 | M110: Total saleable meat | N110: =SUM(N98:N109) -> 2.308 | O110: =(N110/M93) -> 0.9382113821
C111: Bone & Waste (Kg) | D111: 0.166 | E111: =(D111/C93) -> 0.06677393403 | M111: Bone & Waste (Kg) | N111: 0.116 | O111: =(N111/M93) -> 0.04715447154
C112: Drip/Cutting loss(Kg) | D112: =(C93-D110-D111) -> 0.006 | E112: =(D112/C93) -> 0.002413515688 | M112: Drip/Cutting loss(Kg) | N112: =(M93-N110-N111) -> 0.036 | O112: =(N112/M93) -> 0.01463414634
D114: Total Sales Value | G114: =SUM(G98:G109) -> 20.872 | N114: Total Sales Value | Q114: =SUM(Q98:Q109) -> 23.41996
D115: Gross Margin | G115: =SUM(G98:G109,-C95) -> 12.7925 | N115: Gross Margin | Q115: =SUM(Q98:Q109,-M95) -> 15.42496
D116: Gross Profit | G116: =(G115/G114) -> 0.612902453 | N116: Gross Profit | Q116: =(Q115/Q114) -> 0.6586245237
K118: Value | L118: Gross Margin | M118: Profit %
G119: Table 1 | K119: =(G114) -> 20.872 | L119: =(G115) -> 12.7925 | M119: =(G116) -> 0.612902453
G120: Table 2 | K120: =(Q114) -> 23.41996 | L120: =(Q115) -> 15.42496 | M120: =(Q116) -> 0.6586245237
G121: Increased Profit | K121: =(K120-K119) -> 2.54796 | L121: =(L120-L119) -> 2.63246 | M121: =SUM(M120-M119) -> 0.04572207065
G125: Thick Flank- EBLEX Code: Thick Flank B001
M129: `
B130: Table 1 | L130: Table 2
B131: Product name | C131: Thick Flank Joints | F131: Thick Flank B002 | L131: Product name | M131: Thick Flank Seam Cut | P131: Thick flank B005
B132: Primal weight | C132: 6.586 | D132: Percentage of Carcase | G132: =(C132/C4) -> 0.03981284457 | L132: Primal weight | M132: 6.404 | N132: Percentage of Carcase | Q132: =(M132/M4) -> 0.03994311661
B133: Price Per Kg | C133: 4.2 | L133: Price Per Kg | M133: 4.2
B134: Wholesale cost: | C134: =(C133*C132) -> 27.6612 | L134: Wholesale cost: | M134: =(M133*M132) -> 26.8968
B136: Product description | C136: Eblex code | D136: Weight (Kg) | E136: Red Meat Yield % | F136: Selling price (£/Kg) | G136: Value £ | L136: Product description | M136: Eblex code | N136: Weight (Kg) | O136: Red Meat Yield % | P136: Selling price (£/Kg) | Q136: Value£
B137: Thick Flank Joints | C137: Thick flank B002 | D137: 6.166 | E137: =(D137/C132) -> 0.9362283632 | F137: 8 | G137: =(D137*F137) -> 49.328 | L137: Centre Cut Steaks | M137: Thick Flank B005 | N137: 2.132 | O137: =(N137/M132) -> 0.3329169269 | P137: 14.86 | Q137: =(N137*P137) -> 31.68152
B138: Trim 85% Visual Lean | C138: Trim B008 | D138: 0.266 | E138: =(D138/C132) -> 0.04038870331 | F138: 7 | G138: =(D138*F138) -> 1.862 | L138: Escallops(Thick Flank) | M138: Thick Flank B005 | N138: 1.984 | O138: =(N138/M132) -> 0.309806371 | P138: 14.86 | Q138: 29.48224
E139: =(D139/C132) -> 0 | G139: 0 | L139: Pavé(Thick Flank) | M139: Thick Flank B007 | N139: 0.486 | O139: =(N139/M132) -> 0.07589006871 | P139: 14.86 | Q139: 7.22196
E140: =(D140/C132) -> 0 | G140: 0 | L140: Dice 98% Visual Lean | M140: DiceB001 | N140: 0.465 | O140: =(N140/M132) -> 0.07261086821 | P140: 10 | Q140: 4.65
E141: =(D141/C132) -> 0 | G141: 0 | L141: Trim 85% Visual Lean | M141: Trim B008 | N141: 1.138 | O141: =(N141/M132) -> 0.1777014366 | P141: 7 | Q141: 7.966
E142: =(D142/C132) -> 0 | G142: 0 | O142: =(N142/M132) -> 0 | Q142: 0
E143: =(D143/C132) -> 0 | G143: 0 | O143: =(N143/M132) -> 0 | Q143: 0
E144: =(D144/C132) -> 0 | G144: 0 | O144: =(N144/M132) -> 0 | Q144: 0
E145: =(D145/C132) -> 0 | G145: 0 | O145: =(N145/M132) -> 0 | Q145: 0
E146: =(D146/C132) -> 0 | G146: 0 | O146: =(N146/M132) -> 0 | Q146: 0
E147: =(D147/C132) -> 0 | G147: 0 | O147: =(N147/M132) -> 0 | Q147: 0
E148: =(D148/C132) -> 0 | G148: 0 | O148: =(N148/M132) -> 0 | Q148: 0
C149: Total saleable meat | D149: =SUM(D137:D148) -> 6.432 | E149: =(D149/C132) -> 0.9766170665 | M149: Total saleable meat | N149: =SUM(N137:N148) -> 6.205 | O149: =(N149/M132) -> 0.9689256715
C150: Bone & Waste (Kg) | D150: 0.148 | E150: =(D150/C132) -> 0.02247191011 | M150: Bone & Waste (Kg) | N150: 0.142 | O150: =(N150/M132) -> 0.02217364147
C151: Drip/Cutting loss(Kg) | D151: =(C132-D149-D150) -> 0.006 | E151: =(D151/C132) -> 0.0009110233829 | M151: Drip/Cutting loss(Kg) | N151: =(M132-N149-N150) -> 0.057 | O151: =(N151/M132) -> 0.008900687071
D153: Total Sales Value | G153: =SUM(G137:G148) -> 51.19 | N153: Total Sales Value | Q153: =SUM(Q137:Q148) -> 81.00172
D154: Gross Margin | G154: =SUM(G137:G148,-C134) -> 23.5288 | N154: Gross Margin | Q154: =SUM(Q137:Q148,-M134) -> 54.10492
D155: Gross Profit | G155: =(G154/G153) -> 0.4596366478 | N155: Gross Profit | Q155: =(Q154/Q153) -> 0.6679477917
K157: Value | L157: Gross Margin | M157: Profit %
G158: Table 1 | K158: =(G153) -> 51.19 | L158: =(G154) -> 23.5288 | M158: =(G155) -> 0.4596366478
G159: Table 2 | K159: =(Q153) -> 81.00172 | L159: =(Q154) -> 54.10492 | M159: =(Q155) -> 0.6679477917
G160: Increased Profit | K160: =(K159-K158) -> 29.81172 | L160: =(L159-L158) -> 30.57612 | M160: =SUM(M159-M158) -> 0.2083111439
G164: D Rump (without tail)- EBLEX Code: Rump B004
M168: `
B169: Table 1 | L169: Table 2
B170: Product name | C170: Traditional Rump Steaks | F170: Rump B006 | L170: Product name | M170: Premium Prime Rump Steak | P170: Rump B003
B171: Primal weight | C171: 5.204 | D171: Percentage of Carcase | G171: =(C171/C4) -> 0.03145855499 | L171: Primal weight | M171: 5.368 | N171: Percentage of Carcase | Q171: =(M171/M4) -> 0.03348136321
B172: Price Per Kg | C172: 6.5 | L172: Price Per Kg | M172: 6.5
B173: Wholesale cost: | C173: =(C172*C171) -> 33.826 | L173: Wholesale cost: | M173: =(M172*M171) -> 34.892
B175: Product description | C175: Eblex code | D175: Weight (Kg) | E175: Red Meat Yield % | F175: Selling price (£/Kg) | G175: Value £ | L175: Product description | M175: Eblex code | N175: Weight (Kg) | O175: Red Meat Yield % | P175: Selling price (£/Kg) | Q175: Value£
B176: Traditional Rump Steaks | C176: Rump B006 | D176: 4.984 | E176: =(D176/C171) -> 0.9577248271 | F176: 15 | G176: =(D176*F176) -> 74.76 | L176: Prime Rump Steak | M176: Rump B003 | N176: 2.402 | O176: =(N176/M171) -> 0.447466468 | P176: 17 | Q176: =(N176*P176) -> 40.834
B177: Dice 98% Visual Lean | C177: DiceB001 | E177: =(D177/C171) -> 0 | F177: 10 | G177: =(D177*F177) -> 0 | L177: Bistro Rump Steak | M177: Rump B003 | N177: 1.174 | O177: =(N177/M171) -> 0.2187034277 | P177: 23 | Q177: 27.002
B178: Trim 85% Visual Lean | C178: Trim B008 | D178: 0.152 | E178: =(D178/C171) -> 0.02920830131 | F178: 7 | G178: 1.064 | L178: Picanha Steak | M178: Rump B013 | N178: 0.92 | O178: =(N178/M171) -> 0.1713859911 | P178: 17 | Q178: 15.64
E179: =(D179/C171) -> 0 | G179: 0 | L179: Rump Burger Trim | N179: 0.546 | O179: =(N179/M171) -> 0.1017138599 | P179: 15 | Q179: 8.19
E180: =(D180/C171) -> 0 | G180: 0 | O180: =(N180/M171) -> 0 | Q180: 0
E181: =(D181/C171) -> 0 | G181: 0 | O181: =(N181/M171) -> 0 | Q181: 0
E182: =(D182/C171) -> 0 | G182: 0 | O182: =(N182/M171) -> 0 | Q182: 0
E183: =(D183/C171) -> 0 | G183: 0 | O183: =(N183/M171) -> 0 | Q183: 0
E184: =(D184/C171) -> 0 | G184: 0 | O184: =(N184/M171) -> 0 | Q184: 0
E185: =(D185/C171) -> 0 | G185: 0 | O185: =(N185/M171) -> 0 | Q185: 0
E186: =(D186/C171) -> 0 | G186: 0 | O186: =(N186/M171) -> 0 | Q186: 0
E187: =(D187/C171) -> 0 | G187: 0 | O187: =(N187/M171) -> 0 | Q187: 0
C188: Total saleable meat | D188: =SUM(D176:D187) -> 5.136 | E188: =(D188/C171) -> 0.9869331284 | M188: Total saleable meat | N188: =SUM(N176:N187) -> 5.042 | O188: =(N188/M171) -> 0.9392697466
C189: Bone & Waste (Kg) | D189: 0.062 | E189: =(D189/C171) -> 0.01191391238 | M189: Bone & Waste (Kg) | N189: 0.324 | O189: =(N189/M171) -> 0.06035767511
C190: Drip/Cutting loss(Kg) | D190: =(C171-D188-D189) -> 0.006 | E190: =(D190/C171) -> 0.001152959262 | M190: Drip/Cutting loss(Kg) | N190: =(M171-N188-N189) -> 0.002 | O190: =(N190/M171) -> 0.0003725782414
D192: Total Sales Value | G192: =SUM(G176:G187) -> 75.824 | N192: Total Sales Value | Q192: =SUM(Q176:Q187) -> 91.666
D193: Gross Margin | G193: =SUM(G176:G187,-C173) -> 41.998 | N193: Gross Margin | Q193: =SUM(Q176:Q187,-M173) -> 56.774
D194: Gross Profit | G194: =(G193/G192) -> 0.553887951 | N194: Gross Profit | Q194: =(Q193/Q192) -> 0.6193572317
K196: Value | L196: Gross Margin | M196: Profit %
G197: Table 1 | K197: =(G192) -> 75.824 | L197: =(G193) -> 41.998 | M197: =(G194) -> 0.553887951
G198: Table 2 | K198: =(Q192) -> 91.666 | L198: =(Q193) -> 56.774 | M198: =(Q194) -> 0.6193572317
G199: Increased Profit | K199: =(K198-K197) -> 15.842 | L199: =(L198-L197) -> 14.776 | M199: =SUM(M198-M197) -> 0.06546928064
G203: Rump Tail- EBLEX Code: Rump B012
M207: `
B208: Table 1 | L208: Table 2
B209: Product name | C209: Dice 98% Visual Lean | F209: Dice B001 | L209: Product name | M209: Rump Tail/Tri Tip Mini Joint | P209: Rump B020
B210: Primal weight | C210: 1.67 | D210: Percentage of Carcase | G210: =(C210/C4) -> 0.01009527034 | L210: Primal weight | M210: 1.564 | N210: Percentage of Carcase | Q210: =(M210/M4) -> 0.009755002245
B211: Price Per Kg | C211: 5 | L211: Price Per Kg | M211: 5
B212: Wholesale cost: | C212: =(C211*C210) -> 8.35 | L212: Wholesale cost: | M212: =(M211*M210) -> 7.82
B214: Product description | C214: Eblex code | D214: Weight (Kg) | E214: Red Meat Yield % | F214: Selling price (£/Kg) | G214: Value £ | L214: Product description | M214: Eblex code | N214: Weight (Kg) | O214: Red Meat Yield % | P214: Selling price (£/Kg) | Q214: Value£
B215: Dice 98% Visual Lean | C215: Dice B001 | D215: 1.362 | E215: =(D215/C210) -> 0.8155688623 | F215: 10 | G215: =(D215*F215) -> 13.62 | L215: Tri Tip Mini Joint | M215: Rump B020 | N215: 1.04 | O215: =(N215/M210) -> 0.6649616368 | P215: 11.5 | Q215: =(N215*P215) -> 11.96
B216: Trim 85% Visual Lean | C216: Trim B008 | D216: 0.184 | E216: =(D216/C210) -> 0.1101796407 | F216: 7 | G216: =(D216*F216) -> 1.288 | L216: Dice 98% Visual Lean | M216: DiceB001 | N216: 0.274 | O216: =(N216/M210) -> 0.1751918159 | P216: 10 | Q216: 2.74
E217: =(D217/C210) -> 0 | G217: 0 | L217: Trim 85% Visual Lean | M217: Trim B008 | N217: 0.174 | O217: =(N217/M210) -> 0.1112531969 | P217: 7 | Q217: 1.218
E218: =(D218/C210) -> 0 | G218: 0 | O218: =(N218/M210) -> 0 | Q218: 0
E219: =(D219/C210) -> 0 | G219: 0 | O219: =(N219/M210) -> 0 | Q219: 0
E220: =(D220/C210) -> 0 | G220: 0 | O220: =(N220/M210) -> 0 | Q220: 0
E221: =(D221/C210) -> 0 | G221: 0 | O221: =(N221/M210) -> 0 | Q221: 0
E222: =(D222/C210) -> 0 | G222: 0 | O222: =(N222/M210) -> 0 | Q222: 0
E223: =(D223/C210) -> 0 | G223: 0 | O223: =(N223/M210) -> 0 | Q223: 0
E224: =(D224/C210) -> 0 | G224: 0 | O224: =(N224/M210) -> 0 | Q224: 0
E225: =(D225/C210) -> 0 | G225: 0 | O225: =(N225/M210) -> 0 | Q225: 0
E226: =(D226/C210) -> 0 | G226: 0 | O226: =(N226/M210) -> 0 | Q226: 0
C227: Total saleable meat | D227: =SUM(D215:D226) -> 1.546 | E227: =(D227/C210) -> 0.925748503 | M227: Total saleable meat | N227: =SUM(N215:N226) -> 1.488 | O227: =(N227/M210) -> 0.9514066496
C228: Bone & Waste (Kg) | D228: 0.124 | E228: =(D228/C210) -> 0.07425149701 | M228: Bone & Waste (Kg) | N228: 0.054 | O228: =(N228/M210) -> 0.03452685422
C229: Drip/Cutting loss(Kg) | D229: =(C210-D227-D228) -> -1.110223025e-16 | E229: =(D229/C210) -> -6.648042064e-17 | M229: Drip/Cutting loss(Kg) | N229: =(M210-N227-N228) -> 0.022 | O229: =(N229/M210) -> 0.01406649616
D231: Total Sales Value | G231: =SUM(G215:G226) -> 14.908 | N231: Total Sales Value | Q231: =SUM(Q215:Q226) -> 15.918
D232: Gross Margin | G232: =SUM(G215:G226,-C212) -> 6.558 | N232: Gross Margin | Q232: =SUM(Q215:Q226,-M212) -> 8.098
D233: Gross Profit | G233: =(G232/G231) -> 0.4398980413 | N233: Gross Profit | Q233: =(Q232/Q231) -> 0.5087322528
K235: Value | L235: Gross Margin | M235: Profit %
G236: Table 1 | K236: =(G231) -> 14.908 | L236: =(G232) -> 6.558 | M236: =(G233) -> 0.4398980413
G237: Table 2 | K237: =(Q231) -> 15.918 | L237: =(Q232) -> 8.098 | M237: =(Q233) -> 0.5087322528
G238: Increased Profit | K238: =(K237-K236) -> 1.01 | L238: =(L237-L236) -> 1.54 | M238: =SUM(M237-M236) -> 0.06883421148
G242: Striploin- EBLEX Code: Sirloin B002
M246: `
B247: Table 1 | L247: Table 2
B248: Product name | C248: Sirloin Steak standard trim | F248: Sirloin B006 | L248: Product name | M248: Bone -in Porterhouse Steak | P248: Sirloin B017
B249: Primal weight | C249: 7.388 | D249: Percentage of Carcase | G249: =(C249/C4) -> 0.04466099236 | L249: Primal weight | M249: 11.33 | N249: Percentage of Carcase | Q249: =(M249/M4) -> 0.07066763136
B250: Price Per Kg | C250: 11 | L250: Price Per Kg | M250: 8.3
B251: Wholesale cost: | C251: =(C250*C249) -> 81.268 | L251: Wholesale cost: | M251: =(M250*M249) -> 94.039
B253: Product description | C253: Eblex code | D253: Weight (Kg) | E253: Red Meat Yield % | F253: Selling price (£/Kg) | G253: Value £ | L253: Product description | M253: Eblex code | N253: Weight (Kg) | O253: Red Meat Yield % | P253: Selling price (£/Kg) | Q253: Value£
B254: Sirloin Steak standard | C254: Sirloin B006 | D254: 6.83 | E254: =(D254/C249) -> 0.9244721169 | F254: 17.62 | G254: =(D254*F254) -> 120.3446 | L254: Porterhouse Steak | M254: Sirloin B017 | N254: 3.968 | O254: =(N254/M249) -> 0.3502206531 | P254: 19.34 | Q254: =(N254*P254) -> 76.74112
B255: Trim 85% Visual Lean | C255: Trim B008 | D255: 0.39 | E255: =(D255/C249) -> 0.05278830536 | F255: 7 | G255: =(D255*F255) -> 2.73 | L255: Bone in Sirloin Steak | M255: Sirloin B018 | N255: 4.786 | O255: =(N255/M249) -> 0.4224183583 | P255: 19.34 | Q255: 92.56124
E256: =(D256/C249) -> 0 | G256: 0 | L256: Stir Fry of Beef | M256: Stir Fry B004 | N256: 0.56 | O256: =(N256/M249) -> 0.04942630185 | P256: 15 | Q256: 8.4
E257: =(D257/C249) -> 0 | G257: 0 | L257: Trim 85% Visual Lean | M257: Trim B008 | N257: 0.21 | O257: =(N257/M249) -> 0.0185348632 | P257: 7 | Q257: 1.47
E258: =(D258/C249) -> 0 | G258: 0 | O258: =(N258/M249) -> 0 | Q258: 0
E259: =(D259/C249) -> 0 | G259: 0 | O259: =(N259/M249) -> 0 | Q259: 0
E260: =(D260/C249) -> 0 | G260: 0 | O260: =(N260/M249) -> 0 | Q260: 0
... 604 more rows
